Service area,Service sub division,TVBC Service,Expense type,Detailed expense type,TVBC account code,Date Paid,Transaction Reference,Nett Value,Supplier Name
Planning & Development,Community Development,Community and Leisure ,Supplies & Services,Grants & Subscriptions,Grants,22/12/2014,143332,500,Abbotts Ann Village Shop Association
Environmental & Regulatory,Waste management,Environmental,Supplies & Services,Miscellaneous Expenses,Vehicle insurance claims,11/12/2014,141762,500,Adams Morey Ltd
Planning & Development,Community Development,Community and Leisure ,Supplies & Services,Grants & Subscriptions,Grants,17/12/2014,142799,500,Little Oaks Childrens Centre
Cultural & Related,Open Spaces,Environmental,Supplies & Services,"Printing, Stationery & General Office Expenses",Training Courses,18/12/2014,142673,360.35,Occupational Health First
Environmental & Regulatory,Waste management,Environmental,Supplies & Services,"Printing, Stationery & General Office Expenses",Training Courses,18/12/2014,142673,106.4,Occupational Health First
Central Services to the Public,Management & Support Services,Environmental,Supplies & Services,"Printing, Stationery & General Office Expenses",Training Courses,18/12/2014,142673,33.25,Occupational Health First
Planning & Development,Community Development,Community and Leisure ,Supplies & Services,Grants & Subscriptions,Grants,22/12/2014,143431,500,Charlton Parish Council
Planning & Development,Community Development,Community and Leisure ,Supplies & Services,Grants & Subscriptions,Grants,17/12/2014,142800,500,Stockbridge Music
Cultural & Related,Open Spaces,Environmental,Premises related Expenditure,Water Services,Water And Sewerage Charges,04/12/2014,141718,503.61,Southern Water
Environmental & Regulatory,Regulatory Services,Housing and Environmental Health ,Supplies & Services,Grants and subscriptions,Capital Grants,04/12/2014,141731,504.38,Epw Construction
Central Services to the Public,Management & Support Services,Estates and Economic Development ,Third Party Payments,Other Establishments,Private Contractors,11/12/2014,142283,505.4,Ashine Cleaning Services Ltd
Planning & Development,Building Control,Planning & Building,Employees,Indirect Employee Expenses,Staff Professional Fees,18/12/2014,142963,506,Personal data - Data Protection Act 1998
Central Services to the Public,Management & Support Services,Estates and Economic Development ,Employees,Indirect Employee Expenses,Staff Professional Fees,11/12/2014,142383,506,Personal data - Data Protection Act 1998
Planning & Development,Building Control,Planning & Building,Employees,Indirect Employee Expenses,Staff Professional Fees,22/12/2014,143430,506,Personal data - Data Protection Act 1998
Planning & Development,Building Control,Planning & Building,Supplies & Services,"Printing, Stationery & General Office Expenses",Photocopying Costs,18/12/2014,142667,425.3,Ricoh Uk Ltd
Cultural & Related,Culture & Heritage,Estates and Economic Development ,Premises related Expenditure,Energy Costs,Gas,22/12/2014,142606,429.19,Total Gas & Power Ltd
Central Services to the Public,Management & Support Services,Estates and Economic Development ,Supplies & Services,"Equipment, Furniture & Materials",Equipment Hire,04/12/2014,141288,434.2,Hampshire Plant & Access Limited
Central Services to the Public,Elections,Legal & Democratic,Supplies & Services,"Printing, Stationery & General Office Expenses",Postage Costs,22/12/2014,142648,436.46,Financial Data Management Plc
Planning & Development,Development Control,Planning & Building,Supplies & Services,Services,Professional Fees,22/12/2014,143167,446.53,Valuation Office Agency
Central Services to the Public,Management & Support Services,Environmental,Supplies & Services,"Printing, Stationery & General Office Expenses",Training Courses,11/12/2014,142227,447,Freight Transport Association
Cultural & Related,Culture & Heritage,Community and Leisure ,Premises related Expenditure,Cleaning and domestic supplies,Cleaning Materials-Purchases,04/12/2014,141711,11.5,3663
Cultural & Related,Culture & Heritage,Community and Leisure ,Supplies & Services,Catering,Caf�/ bar consumables,04/12/2014,141711,20.92,3663
Cultural & Related,Culture & Heritage,Community and Leisure ,Supplies & Services,Catering,Non-Contract Catering,04/12/2014,141711,378.66,3663
Cultural & Related,Culture & Heritage,Community and Leisure ,Supplies & Services,Catering,Caf� Catering supplies,04/12/2014,141711,56.39,3663
Central Services to the Public,Management & Support Services,Estates and Economic Development ,Third Party Payments,Other Establishments,Private Contractors,11/12/2014,142282,560,Ashine Cleaning Services Ltd
Central Services to the Public,Management & Support Services,Environmental,Supplies & Services,"Equipment, Furniture & Materials",Maintenance Equip + Materials,22/12/2014,142637,470,Mb Garage Equipment
Environmental & Regulatory,Waste management,Environmental,Employees,Indirect Employee Expenses,Agency Staff - Waged Posts,04/12/2014,141560,471.24,365 Supply Ltd
Planning & Development,Planning Policy,Plan Pol & Transport,Supplies & Services,"Printing, Stationery & General Office Expenses",Stationery,11/12/2014,141542,141.5,Supplies Team Ltd
"Highways, Roads & Transport",Highways and roads - maintenance,Plan Pol & Transport,Supplies & Services,"Printing, Stationery & General Office Expenses",Stationery,11/12/2014,141542,117.92,Supplies Team Ltd
"Highways, Roads & Transport",Parking Services,Plan Pol & Transport,Supplies & Services,"Printing, Stationery & General Office Expenses",Stationery,11/12/2014,141542,212.25,Supplies Team Ltd
Environmental & Regulatory,Regulatory Services,Estates and Economic Development ,Supplies & Services,"Equipment, Furniture & Materials",Purchase Equip + Materials,22/12/2014,143412,473.1,Cjs Portsmouth Ltd
Environmental & Regulatory,"Cemetery, Cremation and Mortuary Services",Community and Leisure ,Premises related Expenditure,Grounds Maintenance Costs,Gm - Additional Works,11/12/2014,141849,570.2,St Peters Church
Environmental & Regulatory,Street Cleansing (not chargeable to Highways),Environmental,Supplies & Services,Miscellaneous Expenses,Vehicle insurance claims,04/12/2014,141532,475.42,Dennis Eagle Ltd
Central Services to the Public,Management & Support Services,Environmental,Transport Related Expenditure,Direct Transport Costs,Oils,04/12/2014,141127,475.6,Fuchs Lubricants (Uk) Plc
Central Services to the Public,Management & Support Services,Environmental,Transport Related Expenditure,Direct Transport Costs,Oils,04/12/2014,141529,475.6,Fuchs Lubricants (Uk) Plc
Environmental & Regulatory,Waste management,Environmental,Transport Related Expenditure,Direct Transport Costs,External Garages,04/12/2014,141699,480,Vishay Pm Onboard
Environmental & Regulatory,Waste management,Environmental,Transport Related Expenditure,Direct Transport Costs,External Garages,11/12/2014,141598,480,Vishay Pm Onboard
Central Services to the Public,Management & Support Services,Chief Executive's,Employees,Indirect Employee Expenses,Temporary Staff,04/12/2014,141704,490.62,Personnel Selection
Central Services to the Public,Management & Support Services,Chief Executive's,Employees,Indirect Employee Expenses,Temporary Staff,18/12/2014,142600,490.62,Personnel Selection
Environmental & Regulatory,Street Cleansing (not chargeable to Highways),Environmental,Supplies & Services,"Printing, Stationery & General Office Expenses",Training Courses,22/12/2014,142974,495,Aquila Training Services Ltd
Central Services to the Public,Management & Support Services,Chief Executive's,Employees,Indirect Employee Expenses,Temporary Staff,04/12/2014,141086,497.25,Personnel Selection
Central Services to the Public,Management & Support Services,Chief Executive's,Employees,Indirect Employee Expenses,Temporary Staff,04/12/2014,141706,497.25,Personnel Selection
Central Services to the Public,Management & Support Services,Chief Executive's,Employees,Indirect Employee Expenses,Temporary Staff,11/12/2014,142079,497.25,Personnel Selection
External Trading Accounts,Industrial Estates,Estates and Economic Development ,Supplies & Services,Miscellaneous Expenses,Waste Collection,22/12/2014,143203,499.8,Basingstoke Skip Hire & Sthrn Waste Mgt Ltd
Environmental & Regulatory,Street Cleansing (not chargeable to Highways),Environmental,Supplies & Services,"Equipment, Furniture & Materials",Purchase Equip + Materials,22/12/2014,142973,502.2,Graffiti Removal Ltd
Cultural & Related,Open Spaces,Environmental,Third Party Payments,Other Establishments,Private Contractors,11/12/2014,142037,630,Ivan Gibson Agricultural Contractor
Central Services to the Public,Management & Support Services,Estates and Economic Development ,Transport Related Expenditure,Direct Transport Costs,Repair Materials,18/12/2014,142671,10.7,M D Services
Environmental & Regulatory,Regulatory Services,Estates and Economic Development ,Transport Related Expenditure,Direct Transport Costs,Repair Materials,18/12/2014,142671,4.28,M D Services
Environmental & Regulatory,Regulatory Services,Housing and Environmental Health ,Transport Related Expenditure,Direct Transport Costs,Repair Materials,18/12/2014,142671,4.28,M D Services
Environmental & Regulatory,Regulatory Services,Housing and Environmental Health ,Transport Related Expenditure,Direct Transport Costs,Repair Materials,18/12/2014,142671,4.28,M D Services
Environmental & Regulatory,Community Development,Community and Leisure ,Transport Related Expenditure,Direct Transport Costs,Repair Materials,18/12/2014,142671,4.28,M D Services
"Highways, Roads & Transport",Parking Services,Plan Pol & Transport,Transport Related Expenditure,Direct Transport Costs,Repair Materials,18/12/2014,142671,4.28,M D Services
Cultural & Related,Open Spaces,Environmental,Transport Related Expenditure,Direct Transport Costs,Repair Materials,18/12/2014,142671,83.46,M D Services
Environmental & Regulatory,Street Cleansing (not chargeable to Highways),Environmental,Transport Related Expenditure,Direct Transport Costs,Repair Materials,18/12/2014,142671,49.22,M D Services
Environmental & Regulatory,Waste management,Environmental,Transport Related Expenditure,Direct Transport Costs,Repair Materials,18/12/2014,142671,46.44,M D Services
Environmental & Regulatory,Waste management,Environmental,Transport Related Expenditure,Direct Transport Costs,Repair Materials,18/12/2014,142671,6.42,M D Services
Central Services to the Public,Management & Support Services,Environmental,Transport Related Expenditure,Direct Transport Costs,Workshop Consumables,18/12/2014,142671,69.16,M D Services
Central Services to the Public,Management & Support Services,Environmental,Transport Related Expenditure,Direct Transport Costs,Repair Materials,18/12/2014,142671,232.42,M D Services
Central Services to the Public,Management & Support Services,Environmental,Transport Related Expenditure,Direct Transport Costs,Repair Materials,18/12/2014,142671,6.42,M D Services
Cultural & Related,Culture & Heritage,Community and Leisure ,Supplies & Services,Catering,Non-Contract Catering,18/12/2014,142791,529.49,Carlsberg Uk Ltd
Cultural & Related,Open Spaces,Environmental,Transport Related Expenditure,Direct Transport Costs,Repair Materials,11/12/2014,142069,535.46,Kgm Ltd
Central Services to the Public,Management & Support Services,IT,Supplies & Services,"Printing, Stationery & General Office Expenses",Stationery,18/12/2014,141543,538.03,Supplies Team Ltd
Environmental & Regulatory,Waste management,Environmental,Employees,Indirect Employee Expenses,Agency Staff - Waged Posts,22/12/2014,142970,540,Abacus Employment Services Ltd
Central Services to the Public,Management & Support Services,Chief Executive's,Supplies & Services,Miscellaneous Expenses,Medical Fees,04/12/2014,141536,650.97,The Health Station Ltd
Central Services to the Public,Management & Support Services,Chief Executive's,Supplies & Services,Miscellaneous Expenses,Medical Fees,22/12/2014,141537,650.97,The Health Station Ltd
Central Services to the Public,Management & Support Services,Environmental,Supplies & Services,"Clothes, Uniforms & Laundry",Clothing + Uniforms,11/12/2014,141298,554.81,Arco Ltd
Central Services,Corporate & Democratic Core,Corporate & Democratic,Supplies & Services,"Printing, Stationery & General Office Expenses",External Printing,18/12/2014,142050,558,Tall Security Print Ltd
Central Services to the Public,Elections,Legal & Democratic,Supplies & Services,"Printing, Stationery & General Office Expenses",External Printing,04/12/2014,141841,563.42,Financial Data Management Plc
Planning & Development,Development Control,Planning & Building,Supplies & Services,"Printing, Stationery & General Office Expenses",Photocopying Costs,18/12/2014,142666,573.73,Ricoh Uk Ltd
Central Services to the Public,Management & Support Services,Estates and Economic Development ,Premises related Expenditure,Repairs Alterations & Maintenance of Buildings,Building Maint - Non Estates,11/12/2014,142288,586.23,Basingstoke Fire Protection Ltd
Central Services to the Public,Management & Support Services,Estates and Economic Development ,Supplies & Services,"Equipment, Furniture & Materials",Purchase Equip + Materials,18/12/2014,142631,592.63,Signway Supplies (Datchet Ltd)
Central Services to the Public,Management & Support Services,Estates and Economic Development ,Third Party Payments,Private contractors,Secondary contract - non est,11/12/2014,141519,594.72,Hampshire County Council
Environmental & Regulatory,Waste management,Environmental,Employees,Indirect Employee Expenses,Agency Staff - Waged Posts,04/12/2014,141557,595.69,Abacus Employment Services Ltd
Central Services to the Public,Elections,Legal & Democratic,Supplies & Services,"Printing, Stationery & General Office Expenses",External Printing,04/12/2014,141540,596.34,Financial Data Management Plc
Cultural & Related,Culture & Heritage,Community and Leisure ,Supplies & Services,Miscellaneous Expenses,Booking Of Acts,04/12/2014,141518,600,Proteus Theatre Co Productions Ltd Vat Acct
Central Services to the Public,Management & Support Services,Housing and Environmental Health ,Supplies & Services,"Printing, Stationery & General Office Expenses",Photocopying Costs,22/12/2014,142665,600.06,Ricoh Uk Ltd
Central Services to the Public,Management & Support Services,Legal & Democratic,Supplies & Services,"Printing, Stationery & General Office Expenses",Stationery,11/12/2014,141550,116.15,Supplies Team Ltd
Central Services to the Public,Elections,Legal & Democratic,Supplies & Services,"Printing, Stationery & General Office Expenses",Stationery,11/12/2014,141550,465.62,Supplies Team Ltd
Environmental & Regulatory,Regulatory Services,Legal & Democratic,Supplies & Services,"Printing, Stationery & General Office Expenses",Stationery,11/12/2014,141550,19.36,Supplies Team Ltd
Cultural & Related,Culture & Heritage,Community and Leisure ,Supplies & Services,Miscellaneous Expenses,Booking Of Acts,22/12/2014,143315,628.23,Shakespeare Schools Festival
Central Services to the Public,Management & Support Services,Environmental,Supplies & Services,"Equipment, Furniture & Materials",Maintenance Equip + Materials,11/12/2014,141760,638.6,Triscan Systems Ltd
Cultural & Related,Open Spaces,Community and Leisure ,Supplies & Services,"Equipment, Furniture & Materials",Purchase Equip + Materials,18/12/2014,142629,640,Mainwaring Ditch Associates
Cultural & Related,Culture & Heritage,Community and Leisure ,Supplies & Services,Miscellaneous Expenses,Booking Of Acts,18/12/2014,137889,640,Mindblowers (Uk) Ltd
Central Services to the Public,Management & Support Services,Environmental,Transport Related Expenditure,Direct Transport Costs,Repair Materials,04/12/2014,141530,526.85,Fuchs Lubricants (Uk) Plc
Central Services to the Public,Management & Support Services,Environmental,Transport Related Expenditure,Direct Transport Costs,Oils,04/12/2014,141530,119.5,Fuchs Lubricants (Uk) Plc
Environmental & Regulatory,Regulatory Services,Housing and Environmental Health ,Supplies & Services,Grants and subscriptions,Capital Grants,18/12/2014,142395,780,Andover Glass Works Ltd
"Highways, Roads & Transport",Highways and roads - maintenance,Plan Pol & Transport,Supplies & Services,"Equipment, Furniture & Materials",Purchase Equip + Materials,04/12/2014,141176,650,Signway Supplies (Datchet Ltd)
Central Services to the Public,Management & Support Services,Estates and Economic Development ,Third Party Payments,Other Establishments,Private Contractors,22/12/2014,143209,651.8,Nuserve Ltd
Environmental & Regulatory,Waste management,Environmental,Employees,Indirect Employee Expenses,Agency Staff - Waged Posts,11/12/2014,141871,664.02,365 Supply Ltd
Cultural & Related,Culture & Heritage,Community and Leisure ,Supplies & Services,Miscellaneous Expenses,Promotions / Special Events,18/12/2014,142622,665,Hampshire Media Limited
Environmental & Regulatory,Regulatory Services,Estates and Economic Development ,Transport Related Expenditure,Direct Transport Costs,External Garages,10/12/2014,141596,231,Bodyshop24
Environmental & Regulatory,Regulatory Services,Estates and Economic Development ,Transport Related Expenditure,Direct Transport Costs,Repair Materials,10/12/2014,141596,435.1,Bodyshop24
Central Services to the Public,Management & Support Services,Chief Executive's,Supplies & Services,"Printing, Stationery & General Office Expenses",Training Courses,18/12/2014,142919,800,Sparsholt College Hampshire
Cultural & Related,Culture & Heritage,Community and Leisure ,Supplies & Services,Miscellaneous Expenses,Booking Of Acts,11/12/2014,142269,800,Larkin About
Environmental & Regulatory,Waste management,Environmental,Employees,Indirect Employee Expenses,Agency Staff - Waged Posts,11/12/2014,139840,671,Simple Recruitment Services Ltd
Central Services to the Public,Management & Support Services,IT,Supplies & Services,Communications & Computing,Computer Hardware,18/12/2014,140924,681.5,Essentra Packaging & Security Ltd
Cultural & Related,Open Spaces,Environmental,Supplies & Services,Miscellaneous Expenses,Waste Collection,18/12/2014,142596,689.58,Raymond Brown Minerals & Recycling Ltd
Cultural & Related,Open Spaces,Environmental,Supplies & Services,Miscellaneous Expenses,Waste Collection,04/12/2014,138319,693.78,Raymond Brown Minerals & Recycling Ltd
Central Services to the Public,Management & Support Services,Estates and Economic Development ,Premises related Expenditure,Energy Costs,Gas,22/12/2014,142607,696.93,Total Gas & Power Ltd
Central Services to the Public,Management & Support Services,Estates and Economic Development ,Third Party Payments,Other Establishments,Private Contractors,11/12/2014,142281,840,Ashine Cleaning Services Ltd
Cultural & Related,Culture & Heritage,Community and Leisure ,Supplies & Services,"Printing, Stationery & General Office Expenses",Photocopying Costs,18/12/2014,142786,704.61,Ricoh Uk Ltd
Central Services to the Public,Local Tax Collection,Revenues,Supplies & Services,"Printing, Stationery & General Office Expenses",Postage Costs,04/12/2014,141753,48.62,Royal Mail
Central Services to the Public,Local Tax Collection,Revenues,Supplies & Services,"Printing, Stationery & General Office Expenses",Postage Costs,04/12/2014,141753,275.84,Royal Mail
Housing Services,Housing Benefits ,Revenues,Supplies & Services,"Printing, Stationery & General Office Expenses",Postage Costs,04/12/2014,141753,194.26,Royal Mail
Central Services to the Public,Local Tax Collection,Revenues,Supplies & Services,"Printing, Stationery & General Office Expenses",Postage Costs,04/12/2014,141753,194.26,Royal Mail
External Trading Accounts,Industrial Estates,Estates and Economic Development ,Premises related Expenditure,Energy Costs,Gas,22/12/2014,142603,731.85,Total Gas & Power Ltd
Cultural & Related,Tourism,Estates and Economic Development ,Supplies & Services,Miscellaneous Expenses,Photography Fees,17/12/2014,142679,900,Joe Low Photographer
Central Services to the Public,Management & Support Services,IT,Supplies & Services,Communications & Computing,Land Line Telephone Charges,11/12/2014,142076,758.53,Virgin Media Payments Ltd
Cultural & Related,Open Spaces,Environmental,Supplies & Services,"Printing, Stationery & General Office Expenses",Training Courses,22/12/2014,143213,810,Dale Valley Training
Cultural & Related,Culture & Heritage,Community and Leisure ,Third Party Payments,Private contractors,Main Contractor Costs,22/12/2014,142792,776.1,Chris Brammall Limited
Planning & Development,Development Control,Planning & Building,Supplies & Services,Services,Project Consultancy - Policy,04/12/2014,141749,795,Reading Agricultural Consultants Ltd
Planning & Development,Development Control,Planning & Building,Supplies & Services,Services,Project Consultancy - Policy,04/12/2014,141750,795,Reading Agricultural Consultants Ltd
Central Services to the Public,Management & Support Services,Estates and Economic Development ,Supplies & Services,"Equipment, Furniture & Materials",Equipment Hire,11/12/2014,141745,825,Crown Water & Coffee
Environmental & Regulatory,Street Cleansing (not chargeable to Highways),Environmental,Supplies & Services,"Printing, Stationery & General Office Expenses",Training Courses,10/12/2014,141837,414,Pdm Training Solutions
Environmental & Regulatory,Waste management,Environmental,Supplies & Services,"Printing, Stationery & General Office Expenses",Training Courses,10/12/2014,141837,414,Pdm Training Solutions
Cultural & Related,Open Spaces,Community and Leisure ,Supplies & Services,Miscellaneous Expenses,Vehicle insurance claims,11/12/2014,141734,1000,Zurich Insurance Company
Planning & Development,Community Development,Community and Leisure ,Supplies & Services,Grants & Subscriptions,Grants,22/12/2014,143330,1000,Little Oaks Childrens Centre
Central Services,Corporate & Democratic Core,Corporate & Democratic,Supplies & Services,Services,Professional Advice,04/12/2014,141700,833.33,Coffin Mew Llp
Planning & Development,Economic Development,Estates and Economic Development ,Supplies & Services,"Printing, Stationery & General Office Expenses",Training Courses,18/12/2014,142570,1000,3fd Productdesigndevelopment
Planning & Development,Economic Development,Estates and Economic Development ,Supplies & Services,"Printing, Stationery & General Office Expenses",Training Courses,11/12/2014,142372,1004.17,Swift Courier Solutions Ltd
Environmental & Regulatory,Regulatory Services,Housing and Environmental Health ,Supplies & Services,Miscellaneous Expenses,Kennel fees,18/12/2014,142794,840,Anton Vets Ltd
Cultural & Related,Open Spaces,Environmental,Supplies & Services,"Printing, Stationery & General Office Expenses",Training Courses,22/12/2014,143282,900,Dale Valley Training
Central Services to the Public,Management & Support Services,Environmental,Supplies & Services,"Clothes, Uniforms & Laundry",Clothing + Uniforms,22/12/2014,142662,843.64,Arco Ltd
Environmental & Regulatory,Waste management,Environmental,Employees,Indirect Employee Expenses,Agency Staff - Waged Posts,22/12/2014,142969,847.28,365 Supply Ltd
Environmental & Regulatory,Regulatory Services,Housing and Environmental Health ,Supplies & Services,"Equipment, Furniture & Materials",Purchase Equip + Materials,11/12/2014,141839,853.2,Environmental Scientifics Group Ltd
Central Services to the Public,Management & Support Services,Environmental,Transport Related Expenditure,Direct Transport Costs,Repair Materials,11/12/2014,141853,854.68,Terberg Matec Uk Limited
Environmental & Regulatory,Waste management,Environmental,Transport Related Expenditure,Direct Transport Costs,External Garages,22/12/2014,142678,875,Rymer Commercials Ltd
Environmental & Regulatory,Waste management,Environmental,Employees,Indirect Employee Expenses,Agency Staff - Waged Posts,22/12/2014,142968,897.76,Abacus Employment Services Ltd
Central Services to the Public,Management & Support Services,Estates and Economic Development ,Third Party Payments,Other Establishments,Private Contractors,04/12/2014,141304,913,Doorgear Limited
Environmental & Regulatory,Regulatory Services,Housing and Environmental Health ,Supplies & Services,Miscellaneous Expenses,Promotions / Special Events,04/12/2014,141118,935,Idapt Llp
"Highways, Roads & Transport",Parking Services,Plan Pol & Transport,Support Services,IT,IT software licences,11/12/2014,124863,940.5,Capita Business Services
Planning & Development,Development Control,Planning & Building,Supplies & Services,Miscellaneous Expenses,Planning Appeal Costs,10/12/2014,141864,945,Alllen Planning Ltd
Cultural & Related,Open Spaces,Environmental,Transport Related Expenditure,Direct Transport Costs,Repair Materials,11/12/2014,142080,975,H L Smith Transmissions Ltd
Central Services to the Public,Local Tax Collection,Revenues,Supplies & Services,Communications & Computing,Software Maintenance,18/12/2014,142041,334.9,Otech Ltd
Housing Services,Housing Benefits ,Revenues,Supplies & Services,Communications & Computing,Software Maintenance,18/12/2014,142041,325.05,Otech Ltd
Central Services to the Public,Local Tax Collection,Revenues,Supplies & Services,Communications & Computing,Software Maintenance,18/12/2014,142041,325.05,Otech Ltd
"Highways, Roads & Transport",Highways and roads - maintenance,Plan Pol & Transport,Supplies & Services,"Equipment, Furniture & Materials",Purchase Equip + Materials,22/12/2014,135950,1015,Signway Supplies (Datchet Ltd)
Environmental & Regulatory,Waste management,Environmental,Employees,Indirect Employee Expenses,Agency Staff - Waged Posts,11/12/2014,141873,1019.75,365 Supply Ltd
"Highways, Roads & Transport",Parking Services,Plan Pol & Transport,Premises related Expenditure,Energy Costs,Electricity,22/12/2014,142375,1021.94,Southern Electric
Cultural & Related,Open Spaces,Environmental,Employees,Indirect Employee Expenses,Agency Staff - Waged Posts,18/12/2014,142832,487.83,Simple Recruitment Services Ltd
Environmental & Regulatory,Waste management,Environmental,Employees,Indirect Employee Expenses,Agency Staff - Waged Posts,18/12/2014,142832,538.2,Simple Recruitment Services Ltd
Environmental & Regulatory,Waste management,Environmental,Employees,Indirect Employee Expenses,Agency Staff - Waged Posts,11/12/2014,142216,1046,Simple Recruitment Services Ltd
"Highways, Roads & Transport",Parking Services,Plan Pol & Transport,Supplies & Services,"Printing, Stationery & General Office Expenses",External Printing,11/12/2014,142225,1052,Liberty Printers Ltd
Environmental & Regulatory,Waste management,Environmental,Employees,Indirect Employee Expenses,Agency Staff - Waged Posts,11/12/2014,142107,1107.12,Abacus Employment Services Ltd
Planning & Development,Development Control,Planning & Building,Supplies & Services,Services,Project Consultancy - Policy,22/12/2014,143183,1140,Tanner & Tilley Planning Consultants
Central Services to the Public,Management & Support Services,Finance,Supplies & Services,"Printing, Stationery & General Office Expenses",Postage Costs,18/12/2014,142617,1147.31,Whistl South West Ltd
Environmental & Regulatory,Street Cleansing (not chargeable to Highways),Environmental,Transport Related Expenditure,Direct Transport Costs,Repair Materials,11/12/2014,141763,289,Adams Morey Ltd
Environmental & Regulatory,Waste management,Environmental,Transport Related Expenditure,Direct Transport Costs,Repair Materials,11/12/2014,141763,867,Adams Morey Ltd
Cultural & Related,Recreation & Sport,Community and Leisure ,Supplies & Services,"Equipment, Furniture & Materials",Purchase Equip + Materials,04/12/2014,141301,1178.66,Back To The Lab Ltd
Cultural & Related,Culture & Heritage,Community and Leisure ,Supplies & Services,Miscellaneous Expenses,Booking Of Acts,22/12/2014,143449,1426.83,Baroque Theatre Company
Planning & Development,Development Control,Planning & Building,Supplies & Services,"Printing, Stationery & General Office Expenses",Stationery,11/12/2014,141716,904.48,Supplies Team Ltd
Planning & Development,Development Control,Planning & Building,Supplies & Services,"Printing, Stationery & General Office Expenses",Print Consumables,11/12/2014,141716,294.53,Supplies Team Ltd
Cultural & Related,Culture & Heritage,Community and Leisure ,Supplies & Services,"Equipment, Furniture & Materials",Purchase Equip + Materials,11/12/2014,142044,1200,Fence Hire (Southern) Ltd
Central Services,Corporate & Democratic Core,Corporate & Democratic,Supplies & Services,"Equipment, Furniture & Materials",Purchase Equip + Materials,04/12/2014,141630,1200,Shaw & Sons Ltd
Environmental & Regulatory,Street Cleansing (not chargeable to Highways),Environmental,Supplies & Services,"Equipment, Furniture & Materials",Purchase Equip + Materials,04/12/2014,138998,1201.9,Imperial Polythene Products Ltd
Planning & Development,Planning Policy,Plan Pol & Transport,Supplies & Services,Grants & Subscriptions,Grants,22/12/2014,143175,1538.84,Hampshire County Council
Planning & Development,Planning Policy,Plan Pol & Transport,Supplies & Services,Grants & Subscriptions,Grants,22/12/2014,143312,1538.84,Hampshire County Council
Planning & Development,Development Control,Planning & Building,Employees,Indirect Employee Expenses,Temporary Staff,04/12/2014,141526,1295,Hays Specialist Recruitment
Central Services to the Public,Emergency Planning,Corporate & Democratic,Supplies & Services,Grants & Subscriptions,Grants,22/12/2014,143426,1564.64,Personal data - Data Protection Act 1998
Environmental & Regulatory,Regulatory Services,Housing and Environmental Health ,Supplies & Services,Grants and subscriptions,Capital Grants,18/12/2014,142394,1567,Andover Glass Works Ltd
Environmental & Regulatory,Regulatory Services,Housing and Environmental Health ,Supplies & Services,"Equipment, Furniture & Materials",Purchase Equip + Materials,04/12/2014,140412,1312.59,Sx Environmental Supplies Limited
Planning & Development,Development Control,Planning & Building,Employees,Indirect Employee Expenses,Temporary Staff,18/12/2014,142635,1322.9,Hays Specialist Recruitment
"Highways, Roads & Transport",Highways and roads - maintenance,Plan Pol & Transport,Premises related Expenditure,Repairs Alterations & Maintenance of Buildings,Highways Repairs,22/12/2014,137369,1373,Midland Signs (Leicester) Ltd
Planning & Development,Development Control,Planning & Building,Supplies & Services,Miscellaneous Expenses,Planning Appeal Costs,03/12/2014,141085,1375,Tanner & Tilley Planning Consultants
Central Services to the Public,Management & Support Services,Estates and Economic Development ,Premises related Expenditure,Repairs Alterations & Maintenance of Buildings,Building Maint - Non Estates,22/12/2014,143211,1390,Btu Installation & Maintenance Ltd
"Highways, Roads & Transport",Public Transport,Plan Pol & Transport,Third Party Payments,Transport Operators in Respect of Concessionary Fares,Voluntary Orgs Reimbursement,04/12/2014,141192,1673,Andover Neighbourcare
Central Services to the Public,Local Tax Collection,Revenues,Supplies & Services,Miscellaneous Expenses,All Pay Fees,11/12/2014,141755,1667.51,Allpay Limited
Planning & Development,Development Control,Planning & Building,Employees,Indirect Employee Expenses,Temporary Staff,11/12/2014,142043,1408.75,Hays Specialist Recruitment
Central Services to the Public,Management & Support Services,Environmental,Transport Related Expenditure,Direct Transport Costs,Repair Materials,11/12/2014,141722,1446.69,Dennis Eagle Ltd
"Highways, Roads & Transport",Public Transport,Plan Pol & Transport,Third Party Payments,Transport Operators in Respect of Concessionary Fares,Voluntary Orgs Reimbursement,18/12/2014,142787,1746.5,Andover Neighbourcare
Environmental & Regulatory,Regulatory Services,Housing and Environmental Health ,Supplies & Services,Grants and subscriptions,Capital Grants,04/12/2014,141736,1791.59,Hampshire Mobility Services
Central Services to the Public,Management & Support Services,Estates and Economic Development ,Supplies & Services,"Equipment, Furniture & Materials",Purchase Materials (Job Cost),22/12/2014,143410,1500.28,Cjs Portsmouth Ltd
Cultural & Related,Culture & Heritage,Community and Leisure ,Supplies & Services,Catering,Non-Contract Catering,18/12/2014,142834,1553.43,Carlsberg Uk Ltd
Environmental & Regulatory,Regulatory Services,Housing and Environmental Health ,Supplies & Services,Grants and subscriptions,Capital Grants,04/12/2014,141881,1890.53,Spc Bathrooms & Kitchens
Environmental & Regulatory,Street Cleansing (not chargeable to Highways),Environmental,Supplies & Services,"Equipment, Furniture & Materials",Purchase Equip + Materials,04/12/2014,137856,1586,Imperial Polythene Products Ltd
Cultural & Related,Culture & Heritage,Community and Leisure ,Supplies & Services,Miscellaneous Expenses,Promotions / Special Events,04/12/2014,141169,1975,Lpc Printing
Planning & Development,Development Control,Planning & Building,Supplies & Services,Services,Project Consultancy - Policy,11/12/2014,141840,1650,Faithful And Gould
Environmental & Regulatory,"Cemetery, Cremation and Mortuary Services",Community and Leisure ,Supplies & Services,Services,Professional Fees,10/12/2014,142254,2027.8,Personal data - Data Protection Act 1998
Planning & Development,Planning Policy,Plan Pol & Transport,Supplies & Services,"Printing, Stationery & General Office Expenses",External Printing,11/12/2014,141856,5.9,Personal data - Data Protection Act 1998
Planning & Development,Planning Policy,Plan Pol & Transport,Supplies & Services,"Printing, Stationery & General Office Expenses",Postage Costs,11/12/2014,141856,44.55,Personal data - Data Protection Act 1998
Planning & Development,Planning Policy,Plan Pol & Transport,Supplies & Services,Communications & Computing,Land Line Telephone Charges,11/12/2014,141856,22.25,Personal data - Data Protection Act 1998
Planning & Development,Planning Policy,Plan Pol & Transport,Supplies & Services,Services,Project Consultancy - Policy,11/12/2014,141856,2005.5,Personal data - Data Protection Act 1998
Central Services to the Public,Local Tax Collection,Revenues,Supplies & Services,Services,Professional Fees,04/12/2014,141521,74.09,Ross & Roberts
Central Services to the Public,Emergency Planning,Corporate & Democratic,Supplies & Services,Grants & Subscriptions,Grants,18/12/2014,142945,2172.37,Personal data - Data Protection Act 1998
Central Services to the Public,Emergency Planning,Corporate & Democratic,Supplies & Services,Grants & Subscriptions,Grants,18/12/2014,142948,2190,Personal data - Data Protection Act 1998
Cultural & Related,Open Spaces,Community and Leisure ,Premises related Expenditure,Grounds Maintenance Costs,Gm - Additional Works,04/12/2014,141274,1920,Fernden Construction (Winchester) Ltd
Environmental & Regulatory,Regulatory Services,Housing and Environmental Health ,Supplies & Services,Grants and subscriptions,Capital Grants,11/12/2014,142392,2313,Prism Medical Uk
Central Services to the Public,Management & Support Services,Finance,Supplies & Services,"Printing, Stationery & General Office Expenses",Postage Costs,04/12/2014,141523,1935.16,Whistl South West Ltd
Environmental & Regulatory,Regulatory Services,Housing and Environmental Health ,Supplies & Services,Grants and subscriptions,Capital Grants,04/12/2014,141738,2346.5,J D Codd Ltd
Cultural & Related,Culture & Heritage,Community and Leisure ,Premises related Expenditure,Energy Costs,Electricity,11/12/2014,141854,1081.44,Sparsholt College Hampshire
Cultural & Related,Culture & Heritage,Community and Leisure ,Premises related Expenditure,Energy Costs,Gas,11/12/2014,141854,672.65,Sparsholt College Hampshire
Cultural & Related,Culture & Heritage,Community and Leisure ,Premises related Expenditure,Water Services,Water And Sewerage Charges,11/12/2014,141854,254.34,Sparsholt College Hampshire
Cultural & Related,Tourism,Estates and Economic Development ,Premises related Expenditure,Repairs Alterations & Maintenance of Buildings,Planned Maintenance - Non Est,18/12/2014,142572,18.75,Temple Lifts Ltd
Cultural & Related,Culture & Heritage,Estates and Economic Development ,Premises related Expenditure,Repairs Alterations & Maintenance of Buildings,Planned Maintenance - Non Est,18/12/2014,142572,193.75,Temple Lifts Ltd
Cultural & Related,Culture & Heritage,Estates and Economic Development ,Premises related Expenditure,Repairs Alterations & Maintenance of Buildings,Planned Maintenance - Non Est,18/12/2014,142572,18.75,Temple Lifts Ltd
Central Services to the Public,Management & Support Services,Estates and Economic Development ,Premises related Expenditure,Repairs Alterations & Maintenance of Buildings,Planned Maintenance - Non Est,18/12/2014,142572,775,Temple Lifts Ltd
Cultural & Related,Recreation & Sport,Community and Leisure ,Premises related Expenditure,Repairs Alterations & Maintenance of Buildings,Planned Maintenance - Non Est,18/12/2014,142572,775,Temple Lifts Ltd
Cultural & Related,Recreation & Sport,Community and Leisure ,Premises related Expenditure,Repairs Alterations & Maintenance of Buildings,Planned Maintenance - Non Est,18/12/2014,142572,193.75,Temple Lifts Ltd
Central Services to the Public,Management & Support Services,IT,Supplies & Services,Services,Project Consultancy - Systems,22/12/2014,142837,2000,Idox Software Ltd
Planning & Development,Development Control,Planning & Building,Supplies & Services,Services,Professional Fees,22/12/2014,143168,2000,Valuation Office Agency
Central Services to the Public,Management & Support Services,Estates and Economic Development ,Premises related Expenditure,Energy Costs,Gas,22/12/2014,142602,2005.56,Total Gas & Power Ltd
Central Services to the Public,Management & Support Services,IT,Supplies & Services,Communications & Computing,Hardware Maintenance,11/12/2014,141857,2011.9,Fordway Solutions Ltd
Environmental & Regulatory,Waste management,Environmental,Employees,Indirect Employee Expenses,Agency Staff - Waged Posts,04/12/2014,141870,2030.51,365 Supply Ltd
Environmental & Regulatory,Street Cleansing (not chargeable to Highways),Environmental,Supplies & Services,"Equipment, Furniture & Materials",Purchase Equip + Materials,11/12/2014,141835,2050.4,Sweeperhire
Environmental & Regulatory,Street Cleansing (not chargeable to Highways),Environmental,Transport Related Expenditure,Contract Hire and Operating Leases,Vehicles-Hired\Leased,04/12/2014,141632,2190,Dawsonrentals Sweepers
Cultural & Related,Culture & Heritage,Community and Leisure ,Supplies & Services,"Printing, Stationery & General Office Expenses",Postage Costs,04/12/2014,141525,2309.32,Document Despatch Ltd
Planning & Development,Planning Policy,Plan Pol & Transport,Supplies & Services,Services,Project Consultancy - Policy,11/12/2014,140381,2500,Personal data - Data Protection Act 1998
"Highways, Roads & Transport",Highways and roads - maintenance,Plan Pol & Transport,Premises related Expenditure,Repairs Alterations & Maintenance of Buildings,Highways Repairs,22/12/2014,133788,2531,Midland Signs (Leicester) Ltd
Cultural & Related,Culture & Heritage,Community and Leisure ,Supplies & Services,Miscellaneous Expenses,Booking Of Acts,22/12/2014,143165,2844.66,Barry Collings Entertainments
Environmental & Regulatory,Waste management,Environmental,Supplies & Services,"Printing, Stationery & General Office Expenses",External Printing,11/12/2014,142118,2863.25,Personal data - Data Protection Act 1998
Environmental & Regulatory,Regulatory Services,Housing and Environmental Health ,Supplies & Services,Grants and subscriptions,Capital Grants,04/12/2014,141739,3466.81,Aster Property
Environmental & Regulatory,Regulatory Services,Housing and Environmental Health ,Supplies & Services,Grants and subscriptions,Capital Grants,17/12/2014,142391,3499.42,Enham Trust
Environmental & Regulatory,Regulatory Services,Housing and Environmental Health ,Supplies & Services,Grants and subscriptions,Capital Grants,18/12/2014,142966,3525.75,Hampshire Mobility Services
Central Services to the Public,Management & Support Services,Environmental,Transport Related Expenditure,Direct Transport Costs,Diesel,04/12/2014,141303,2713.23,Wessex Petroleum Limited
Central Services to the Public,Management & Support Services,Environmental,Transport Related Expenditure,Direct Transport Costs,Red Derv,04/12/2014,141303,269.44,Wessex Petroleum Limited
Central Services to the Public,Management & Support Services,Environmental,Transport Related Expenditure,Direct Transport Costs,Diesel,18/12/2014,142045,2977.5,Wessex Petroleum Limited
Central Services to the Public,Local Land Charges,Legal & Democratic,Supplies & Services,Miscellaneous Expenses,Land Charges Fees,11/12/2014,141859,3636.75,Hampshire County Council
Cultural & Related,Culture & Heritage,Community and Leisure ,Supplies & Services,Miscellaneous Expenses,Booking Of Acts,22/12/2014,143317,3089.33,Sweeney Entertainments
Central Services to the Public,Management & Support Services,Finance,Supplies & Services,Services,Project Consultancy - Policy,04/12/2014,141705,3375,Capita Business Services
Environmental & Regulatory,Regulatory Services,Housing and Environmental Health ,Supplies & Services,Grants and subscriptions,Capital Grants,18/12/2014,142965,4094,Hampshire Mobility Services
Environmental & Regulatory,Street Cleansing (not chargeable to Highways),Environmental,Third Party Payments,Other Establishments,Private Contractors,18/12/2014,142632,3500,Street Smart Cleansing Ltd
Central Services to the Public,Management & Support Services,Environmental,Transport Related Expenditure,Direct Transport Costs,Diesel,04/12/2014,141302,3502.08,Wessex Petroleum Limited
Central Services to the Public,Management & Support Services,Housing and Environmental Health ,Supplies & Services,Communications & Computing,Computer Hardware,18/12/2014,141752,3505,Advanced Legal Solutions Ltd
Central Services to the Public,Management & Support Services,Estates and Economic Development ,Transport Related Expenditure,Direct Transport Costs,Tyres,11/12/2014,142042,45.35,Ats Euromaster Limited
Environmental & Regulatory,Regulatory Services,Estates and Economic Development ,Transport Related Expenditure,Direct Transport Costs,Tyres,11/12/2014,142042,87.71,Ats Euromaster Limited
Environmental & Regulatory,Regulatory Services,Housing and Environmental Health ,Transport Related Expenditure,Direct Transport Costs,Tyres,11/12/2014,142042,127.52,Ats Euromaster Limited
Environmental & Regulatory,Regulatory Services,Housing and Environmental Health ,Transport Related Expenditure,Direct Transport Costs,Tyres,11/12/2014,142042,87.05,Ats Euromaster Limited
Environmental & Regulatory,Community Development,Community and Leisure ,Transport Related Expenditure,Direct Transport Costs,Tyres,11/12/2014,142042,49.7,Ats Euromaster Limited
Cultural & Related,Open Spaces,Environmental,Transport Related Expenditure,Direct Transport Costs,Tyres,11/12/2014,142042,294.6,Ats Euromaster Limited
Environmental & Regulatory,Street Cleansing (not chargeable to Highways),Environmental,Transport Related Expenditure,Direct Transport Costs,Tyres,11/12/2014,142042,632.12,Ats Euromaster Limited
Environmental & Regulatory,Waste management,Environmental,Transport Related Expenditure,Direct Transport Costs,Tyres,11/12/2014,142042,1444.54,Ats Euromaster Limited
Environmental & Regulatory,Waste management,Environmental,Transport Related Expenditure,Direct Transport Costs,Tyres,11/12/2014,142042,633.92,Ats Euromaster Limited
Central Services to the Public,Management & Support Services,Environmental,Transport Related Expenditure,Direct Transport Costs,Tyres,11/12/2014,142042,122.03,Ats Euromaster Limited
Central Services to the Public,Emergency Planning,Corporate & Democratic,Supplies & Services,Grants & Subscriptions,Grants,18/12/2014,142953,4350,Personal data - Data Protection Act 1998
Central Services to the Public,Management & Support Services,Environmental,Transport Related Expenditure,Direct Transport Costs,Diesel,18/12/2014,142620,3662.91,Wessex Petroleum Limited
Central Services to the Public,Management & Support Services,IT,Supplies & Services,Miscellaneous Expenses,Miscellaneous Capital Expenses,11/12/2014,141741,3750,Quadsys
Central Services to the Public,Management & Support Services,Estates and Economic Development ,Third Party Payments,Private contractors,Main Contractor Costs,18/12/2014,141747,3835.08,Earlcoate Construction & Plant Hire Ltd
Cultural & Related,Recreation & Sport,Community and Leisure ,Third Party Payments,Other Establishments,ALC Management Contract-TVL,18/12/2014,142059,3916.66,Valley Leisure Ltd
Environmental & Regulatory,Regulatory Services,Housing and Environmental Health ,Supplies & Services,Grants and subscriptions,Capital Grants,04/12/2014,141737,4700,Epw Construction
Central Services to the Public,Emergency Planning,Corporate & Democratic,Supplies & Services,Grants & Subscriptions,Grants,18/12/2014,142947,4700,Personal data - Data Protection Act 1998
Central Services to the Public,Management & Support Services,Environmental,Transport Related Expenditure,Direct Transport Costs,Diesel,11/12/2014,142102,3970,Wessex Petroleum Limited
Central Services to the Public,Emergency Planning,Corporate & Democratic,Supplies & Services,Grants & Subscriptions,Grants,11/12/2014,142387,4903.6,Personal data - Data Protection Act 1998
Environmental & Regulatory,Regulatory Services,Housing and Environmental Health ,Supplies & Services,Miscellaneous Expenses,Kennel fees,11/12/2014,141520,4037.17,Southampton City Council
Central Services to the Public,Management & Support Services,Finance,Supplies & Services,"Printing, Stationery & General Office Expenses",Postage Costs,04/12/2014,141875,5000,Neopost Ltd
Central Services to the Public,Emergency Planning,Corporate & Democratic,Supplies & Services,Grants & Subscriptions,Grants,18/12/2014,142946,5000,Albert Jagger Ltd
Central Services to the Public,Emergency Planning,Corporate & Democratic,Supplies & Services,Grants & Subscriptions,Grants,11/12/2014,142385,5000,Personal data - Data Protection Act 1998
Central Services to the Public,Emergency Planning,Corporate & Democratic,Supplies & Services,Grants & Subscriptions,Grants,11/12/2014,142386,5000,Personal data - Data Protection Act 1998
Central Services to the Public,Emergency Planning,Corporate & Democratic,Supplies & Services,Grants & Subscriptions,Grants,11/12/2014,142403,5000,Personal data - Data Protection Act 1998
Central Services to the Public,Emergency Planning,Corporate & Democratic,Supplies & Services,Grants & Subscriptions,Grants,18/12/2014,142958,5000,Personal data - Data Protection Act 1998
Central Services to the Public,Emergency Planning,Corporate & Democratic,Supplies & Services,Grants & Subscriptions,Grants,22/12/2014,143424,5000,Personal data - Data Protection Act 1998
Central Services to the Public,Emergency Planning,Corporate & Democratic,Supplies & Services,Grants & Subscriptions,Grants,22/12/2014,143425,5000,Personal data - Data Protection Act 1998
Central services to the public,"General Grants, Bequests and Donations",Housing and Environmental Health ,Supplies & Services,Grants and subscriptions,Capital Grants,18/12/2014,142967,5000,Kings Somborne Parish Council
Environmental & Regulatory,Regulatory Services,Housing and Environmental Health ,Supplies & Services,Grants and subscriptions,Capital Grants,11/12/2014,142393,5118.99,P Welbourne-Jones Ltd
Cultural & Related,Culture & Heritage,Community and Leisure ,Supplies & Services,Miscellaneous Expenses,Booking Of Acts,22/12/2014,143193,4500,Blunderbus Theatre Company Ltd
Environmental & Regulatory,Waste management,Environmental,Supplies & Services,Miscellaneous Expenses,Recycling Bank Emptying,11/12/2014,142113,4746.39,Fcc Recycling (Uk) Ltd
Housing Services,Homelessness,Housing and Environmental Health ,Supplies & Services,Grants & Subscriptions,Grants,04/12/2014,141269,5950,Andover Crisis & Support Centre
Housing Services,Homelessness,Housing and Environmental Health ,Supplies & Services,Grants & Subscriptions,Grants,18/12/2014,142056,5950,Andover Crisis & Support Centre
Cultural & Related,Recreation & Sport,Community and Leisure ,Third Party Payments,Private contractors,Main Contractor Costs,18/12/2014,142961,5110.22,The Genesis Design Studio Ltd
Housing Services,Housing Benefits ,Revenues,Supplies & Services,Communications & Computing,Software Maintenance,11/12/2014,142115,5125,Victoria Solutions Limited
Environmental & Regulatory,Community Development,Community and Leisure ,Supplies & Services,Communications & Computing,Computer Hardware,18/12/2014,140677,5175,Idox Software Ltd
Environmental & Regulatory,Community Development,Community and Leisure ,Supplies & Services,Communications & Computing,Computer Hardware,22/12/2014,142836,5175,Idox Software Ltd
"Highways, Roads & Transport",Parking Services,Plan Pol & Transport,Supplies & Services,Services,Professional Fees,18/12/2014,142047,5215.65,Keyline Chartered Security Ltd
Central Services to the Public,Management & Support Services,Environmental,Transport Related Expenditure,Direct Transport Costs,Diesel,18/12/2014,142677,5296.42,Wessex Petroleum Limited
Central Services to the Public,Management & Support Services,Environmental,Transport Related Expenditure,Direct Transport Costs,Red Derv,18/12/2014,142677,425.26,Wessex Petroleum Limited
Cultural & Related,Culture & Heritage,Community and Leisure ,Supplies & Services,"Equipment, Furniture & Materials",Purchase Equip + Materials,03/12/2014,141135,6470,Big Tv Uk Ltd
Central Services to the Public,Management & Support Services,Estates and Economic Development ,Supplies & Services,Services,Professional Fees,18/12/2014,142571,6500,Bnp Paribas Real Estate & Property Mgt Uk Ltd
Central Services to the Public,Management & Support Services,IT,Support Services,IT,IT software licences,18/12/2014,142370,6637.5,Automated Intelligence Ltd
Central Services to the Public,Management & Support Services,IT,Supplies & Services,Communications & Computing,Computer Software,04/12/2014,141275,6750,Dotted Eyes Ltd
Cultural & Related,Culture & Heritage,Estates and Economic Development ,Third Party Payments,Private contractors,Main Contractor Costs,11/12/2014,142279,6823.17,Jl Wren Ltd
Cultural & Related,Open Spaces,Community and Leisure ,Premises related Expenditure,Repairs Alterations & Maintenance of Buildings,Estates premises costs - AMP,18/12/2014,142275,7802,Rocon Contractors Ltd
Central Services to the Public,Management & Support Services,Estates and Economic Development ,Third Party Payments,Private contractors,Main Contractor Costs,18/12/2014,141565,11505.2,Earlcoate Construction & Plant Hire Ltd
Environmental & Regulatory,Regulatory Services,Housing and Environmental Health ,Supplies & Services,Grants and subscriptions,Capital Grants,10/12/2014,142253,14340.2,Sahar Building Services Ltd
Central Services to the Public,Management & Support Services,Estates and Economic Development ,Third Party Payments,Private contractors,Main Contractor Costs,18/12/2014,140392,17257.8,Earlcoate Construction & Plant Hire Ltd
Environmental & Regulatory,Regulatory Services,Housing and Environmental Health ,Supplies & Services,Grants & Subscriptions,Grants,18/12/2014,142641,22000,Community First New Forest
"Highways, Roads & Transport",Parking Services,Plan Pol & Transport,Third Party Payments,Private contractors,Main Contractor Costs,04/12/2014,141855,29816.31,Hope & Clay Construction Ltd
Cultural & Related,Recreation & Sport,Community and Leisure ,Third Party Payments,Other Establishments,ALC Management Contract-TVL,18/12/2014,142060,34000,Valley Leisure Ltd
Central Services to the Public,Management & Support Services,Plan Pol & Transport,Premises related Expenditure,Repairs Alterations & Maintenance of Buildings,General Repairs,22/12/2014,143174,64770.65,Rocon Contractors Ltd
